[Event "22nd Alekhine FIDE 2018"]
[Site "Voronezh"]
[Date "2018.06.16"]
[Round "5"]
[White "Abramov, Ilya"]
[Black "Kazmin, Semen"]
[Result "0-1"]
[ECO "D31"]
[WhiteElo "2089"]
[BlackElo "1970"]
[Annotator "NA"]
[PlyCount "98"]
[EventDate "2018.??.??"]
[EventType "swiss"]
[EventCountry "RUS"]
[SourceTitle "playchess.com"]
[Source "ChessBase"]
[SourceQuality "1"]
[TimeControl "5400+30"]

{[%evp 8,96,9,8,78,67,63,43,50,32767,32767,0,-1,-25,-30,-35,-27,-28,-6,-4,6,-1,0,-17,-9,-15,5,0,12,0,22,-9,0,-26,-29,-30,-22,-35,-25,-35,32767,32767,32767,32767,32767,32767,32767,32767,32767,32767,32767,32767,32767,32767,32767,32767,32767,32767,32767,32767,32767,32767,32767,32767,32767,32767,32767,32767,32767,-128,-147,-256,-270,-572,-1210,-1163,-1257,-1727,32767,32767,32767,-1253,-3008,-1760,32767,32767,32767,-3034,-8043,-2200,-29973]} 1. d4 {[%emt 0:00:00]} d5 {[%emt 0:00:15]} 2. c4 {[%emt 0:00:00]} e6 {[%emt 0:00:06]} 3. Nc3 {[%emt 0:00:08]} c6 {[%emt 0:00:06]} 4. e3 {[%emt 0:01:30]} Nd7 {[%emt 0:00:11]} 5. Nf3 {[%emt 0:00:15]} f5 {[%emt 0:00:14]} (5... Ngf6 $11) 6. Bd3 {[%emt 0:00:41]} Nh6 {[%emt 0:00:09]} 7. Qc2 {[%emt 0:01:35] LiveBook: 21 Games A84: Dutch Defence: 2 c4 Miscellaneous} Bd6 {[%emt 0:00:13]} 8. cxd5 {[%emt 0:00:43]} (8. Rb1 a5 9. a3 O-O 10. b4 axb4 11. axb4 dxc4 12. Bxc4 Nb6 13. Be2 Nd5 14. b5 Bd7 {½-½ (31) Zhou,J (2612)-Ding,L (2777) China 2016}) 8... exd5 {[%emt 0:00:15]} 9. Ne2 $146 {[%emt 0:05:42]} ({Predecessor:} 9. Bxf5 Nxf5 10. Qxf5 Ne5 11. Qc2 Nxf3+ 12. gxf3 O-O 13. f4 Qh4 14. Qe2 Bg4 {0-1 (22) Santiago,Y (2510)-Macedo,M (2350) Natal 2017}) 9... Nf6 {[%emt 0:00:55]} 10. Ne5 {[%emt 0:01:52]} O-O {[%emt 0:01:10]} 11. f4 {[%emt 0:05:37]} Ne4 {[%emt 0:01:09]} 12. O-O {[%emt 0:00:43]} Bd7 {[%emt 0:01:41]} 13. Bd2 {[%emt 0:04:37]} Be8 {[%emt 0:04:26]} 14. Bxe4 {[%emt 0:06:30]} fxe4 {[%emt 0:01:14]} 15. Ng3 {[%emt 0:00:08]} Qe7 {[%emt 0:06:15]} 16. Bc3 {[%emt 0:07:04]} Bxe5 {[%emt 0:08:54]} 17. fxe5 {[%emt 0:00:15]} Bd7 {[%emt 0:01:30]} 18. Qd2 {[%emt 0:06:48]} Qg5 {[%emt 0:07:32]} 19. Bb4 {[%emt 0:04:04]} Rxf1+ {[%emt 0:00:39]} 20. Rxf1 {[%emt 0:00:01]} Ng4 {[%emt 0:00:34]} 21. Rf4 {[%emt 0:00:32]} Qh4 {[%emt 0:01:39]} 22. h3 {[%emt 0:04:23]} Qxg3 {[%emt 0:00:25]} 23. hxg4 {[%emt 0:00:06]} Bxg4 {[%emt 0:01:20]} 24. Qf2 {[%emt 0:01:51]} Qxf2+ {[%emt 0:00:19]} 25. Kxf2 {[%emt 0:00:05]} Be6 {[%emt 0:01:37]} 26. Ke1 {[%emt 0:03:05]} b6 {[%emt 0:00:44]} 27. Bd6 {[%emt 0:00:07]} h6 {[%emt 0:01:22]} 28. Ke2 {[%emt 0:00:24]} a5 {[%emt 0:00:49]} 29. Bc7 {[%emt 0:08:37]} a4 {[%emt 0:01:02]} 30. Rf1 {[%emt 0:02:20]} Rc8 {[%emt 0:01:20]} 31. Bd6 {[%emt 0:00:03]} c5 {[%emt 0:00:59]} 32. Rc1 {[%emt 0:02:28]} cxd4 {[%emt 0:01:17]} 33. Rxc8+ Bxc8 {[%emt 0:00:06]} 34. exd4 {[%emt 0:00:08]} Kf7 {[%emt 0:01:12]} 35. Ke3 {[%emt 0:00:39]} g5 {[%emt 0:02:59]} 36. Bb4 {[%emt 0:01:18]} h5 {[%emt 0:00:25]} 37. Kf2 {[%emt 0:00:21]} h4 {[%emt 0:02:40]} 38. Ke3 {[%emt 0:04:54]} g4 {[%emt 0:04:31]} 39. Kf4 $2 {[%emt 0:05:58]} (39. Be1 $17) 39... h3 {[%emt 0:00:09]} 40. gxh3 $2 {[%emt 0:00:55]} (40. Kg3) 40... gxh3 {[%emt 0:00:01]} 41. Kg3 {[%emt 0:01:08]} e3 {[%emt 0:00:36]} 42. a3 {[%emt 0:18:43]} Kg6 {[%emt 0:01:38]} 43. Bc3 {[%emt 0:00:10]} e2 {[%emt 0:01:12]} 44. Bd2 {[%emt 0:00:32] [#]} Bg4 $1 {[%emt 0:00:39]} 45. Kh2 {[%emt 0:01:13]} Kf5 {[%emt 0:00:08]} 46. Kg3 {[%emt 0:00:05]} Ke4 {[%emt 0:00:31]} 47. Bc3 {[%emt 0:01:30]} Kd3 {[%emt 0:00:18]} 48. Kf2 $19 {[%emt 0:01:49]} Kc2 {[%emt 0:00:11]} 49. Bb4 {[%emt 0:00:05]} Kd1 0-1

[Event "22nd Alekhine FIDE 2018"]
[Site "Voronezh"]
[Date "2018.06.16"]
[Round "5"]
[White "Lilov, Aleksandr"]
[Black "Nakonechny, Ignat"]
[Result "1-0"]
[ECO "B85"]
[WhiteElo "2046"]
[BlackElo "1890"]
[Annotator "NA"]
[PlyCount "141"]
[EventDate "2018.??.??"]
[EventType "swiss"]
[EventCountry "RUS"]
[SourceTitle "playchess.com"]
[Source "ChessBase"]
[SourceQuality "1"]
[TimeControl "5400+30"]

1. e4 {[%emt 0:00:31]} c5 {[%emt 0:00:06]} 2. Nf3 {[%emt 0:00:05]} e6 {[%emt 0:00:07]} 3. d4 {[%emt 0:00:04]} cxd4 {[%emt 0:00:03]} 4. Nxd4 {[%emt 0:00:03]} Nf6 {[%emt 0:00:06]} 5. Nc3 {[%emt 0:00:21]} d6 {[%emt 0:00:11]} 6. Be3 {[%emt 0:02:06] LiveBook: 2222 Games} a6 {[%emt 0:00:57]} 7. Be2 {[%emt 0:00:41]} Be7 {[%emt 0:00:18]} 8. O-O {[%emt 0:00:27]} O-O {[%emt 0:00:06]} 9. f4 {[%emt 0:01:18]} Qc7 {[%emt 0:00:10]} 10. Qe1 {[%emt 0:01:34]} Nc6 {[%emt 0:00:42]} 11. Qg3 {[%emt 0:02:44]} e5 {[%emt 0:04:31] B85: Sizilianisch (Scheveninger System)} (11... Nxd4 12. Bxd4 b5 13. a3 Bb7 14. Rae1 Rad8 15. Bd3 Qd7 16. Nd1 Nh5 17. Qg4 Nf6 18. Qh3 e5 19. fxe5 Qxh3 20. gxh3 dxe5 21. Bxe5 Nd7 22. Bc7 {0-1 (60) Vachier Lagrave,M (2795)-Grischuk,A (2750) chess.com INT 2017}) 12. fxe5 {[%emt 0:16:38]} Nxe5 {[%emt 0:01:16]} 13. Nf5 {[%emt 0:04:35]} Bxf5 $1 {[%emt 0:00:42]} 14. Rxf5 {[%emt 0:00:09]} Qc6 $146 {[%emt 0:05:06]} ({Vorgänger:} 14... Kh8 15. Raf1 Rae8 16. Kh1 b5 17. Bd4 b4 18. Rxe5 dxe5 19. Bxe5 Qc6 20. Nd5 Qxc2 21. Bd3 Qd2 22. Nxe7 Rxe7 23. Bd6 Ree8 24. e5 Nd7 25. Bxf8 Rxf8 26. Qh3 {1-0 (26) Paakkonen,T (2225)-Linnanen,L (2189) Finland 2001}) 15. Bd3 {[%emt 0:10:48]} b5 {[%emt 0:03:49]} 16. Bg5 {[%emt 0:09:29]} Kh8 {[%emt 0:17:57]} 17. Raf1 {[%emt 0:07:05]} Rac8 {[%emt 0:13:20]} 18. Qh3 {[%emt 0:10:00]} Qd7 {[%emt 0:03:22]} 19. Bxf6 {[%emt 0:03:52]} Bxf6 {[%emt 0:00:15]} 20. Nd5 {[%emt 0:00:29]} Bd8 {[%emt 0:00:59]} 21. Rxf7 {[%emt 0:05:29]} Rxf7 {[%emt 0:00:42]} 22. Rxf7 {[%emt 0:00:01]} Qxf7 {[%emt 0:00:51]} 23. Qxc8 {[%emt 0:00:07]} Qf8 {[%emt 0:00:20]} 24. Qf5 {[%emt 0:03:46]} (24. Qxa6 $18 Ng4 25. Qa7) 24... Qe8 {[%emt 0:00:10]} 25. Nf4 {[%emt 0:04:38]} ({White should try} 25. g3 $16) 25... g6 $1 {[%emt 0:03:30]} 26. Qh3 {[%emt 0:01:24]} Qf8 {[%emt 0:01:31]} (26... Bb6+ $11 {keeps the balance.} 27. Kh1 Qf7) 27. Nd5 {[%emt 0:00:25]} Bg5 {[%emt 0:02:02]} 28. Qg3 {[%emt 0:00:47]} Bc1 {[%emt 0:01:46]} 29. Qf2 {[%emt 0:00:48]} Qxf2+ {[%emt 0:02:32]} 30. Kxf2 {[%emt 0:00:02]} Bxb2 {[%emt 0:04:28]} 31. Nc7 {[%emt 0:00:27]} Bc3 {[%emt 0:02:41]} 32. Nxa6 {[%emt 0:00:18]} b4 {[%emt 0:00:03]} 33. Ke2 {[%emt 0:02:01]} Kg8 {[%emt 0:05:25]} 34. Nc7 {[%emt 0:01:32]} Bd4 {[%emt 0:00:39]} 35. Nd5 {[%emt 0:00:23]} Bc5 {[%emt 0:00:06]} 36. Kd2 {[%emt 0:03:08]} Kf7 {[%emt 0:02:14]} 37. Be2 {[%emt 0:00:26]} Ke6 {[%emt 0:00:43]} 38. c3 $16 {[%emt 0:00:47]} bxc3+ {[%emt 0:00:53]} 39. Kxc3 {[%emt 0:00:01]} Nc6 {[%emt 0:00:49]} 40. Kc4 {[%emt 0:02:49]} Ke5 {[%emt 0:00:10]} 41. Bf3 {[%emt 0:00:04]} g5 {[%emt 0:01:21]} 42. a4 {[%emt 0:00:40]} Bg1 {[%emt 0:06:28]} 43. h3 {[%emt 0:00:23]} Bf2 {[%emt 0:00:29]} 44. Kb5 {[%emt 0:01:41]} Nd4+ {[%emt 0:00:16]} 45. Ka6 {[%emt 0:00:04]} Nb3 {[%emt 0:03:11]} 46. Nb4 {[%emt 0:01:27]} Bg1 {[%emt 0:03:42]} 47. a5 {[%emt 0:01:06]} Kf4 {[%emt 0:01:13]} 48. Nd5+ {[%emt 0:01:06]} Kg3 {[%emt 0:00:47]} 49. Kb5 {[%emt 0:02:45]} Nd4+ {[%emt 0:03:50]} 50. Kc4 {[%emt 0:00:05]} Nxf3 {[%emt 0:00:19]} 51. gxf3 {[%emt 0:00:08]} h5 {[%emt 0:00:36]} 52. Nf6 {[%emt 0:02:22]} Kxf3 {[%emt 0:01:14]} 53. Nxh5 {[%emt 0:00:59]} Kxe4 {[%emt 0:00:20]} 54. Nf6+ {[%emt 0:00:05]} Ke5 {[%emt 0:00:29]} 55. Nd5 {[%emt 0:00:10]} Ke4 {[%emt 0:00:40]} 56. Nb6 {[%emt 0:00:51]} d5+ {[%emt 0:04:43]} 57. Nxd5 {[%emt 0:00:29]} Ba7 {[%emt 0:00:08]} 58. Nb6 {[%emt 0:01:10]} Kf4 {[%emt 0:00:22]} 59. Kb5 {[%emt 0:00:22]} Kg3 {[%emt 0:00:04]} 60. Ka6 {[%emt 0:00:02]} Bxb6 {[%emt 0:03:21]} 61. axb6 {[%emt 0:00:10]} Kxh3 {[%emt 0:00:04]} 62. b7 {[%emt 0:00:03]} g4 {[%emt 0:00:04]} 63. b8=Q {[%emt 0:00:18]} g3 {[%emt 0:00:06]} 64. Qh8+ {[%emt 0:00:36]} Kg2 {[%emt 0:00:08]} 65. Qh4 {[%emt 0:00:25]} Kf3 {[%emt 0:00:15]} 66. Kb5 {[%emt 0:00:17]} Kf2 {[%emt 0:00:47]} 67. Kc4 {[%emt 0:00:04]} Kf3 {[%emt 0:00:13]} 68. Kd3 {[%emt 0:00:04]} Kf2 {[%emt 0:00:05]} 69. Ke4 {[%emt 0:00:05]} Kg1 {[%emt 0:00:23]} 70. Qxg3+ {[%emt 0:00:08]} Kh1 {[%emt 0:00:05]} 71. Qg4 {[%emt 0:00:02]} 1-0

[Event "22nd Alekhine FIDE 2018"]
[Site "Voronezh"]
[Date "2018.06.16"]
[Round "5"]
[White "Kutyanina, Mariya"]
[Black "Peschansky, Mikhail"]
[Result "0-1"]
[ECO "B34"]
[WhiteElo "2021"]
[BlackElo "2137"]
[Annotator "NA"]
[PlyCount "77"]
[EventDate "2018.??.??"]
[EventType "swiss"]
[EventCountry "RUS"]
[SourceTitle "playchess.com"]
[Source "ChessBase"]
[SourceQuality "1"]
[TimeControl "5400+30"]

{[%evp 8,61,34,19,58,8,16,32767,32767,32767,32767,32767,32767,32767,20,-10,19,9,21,21,15,7,14,0,24,9,18,-7,0,-12,0,32767,32767,32767,32767,32767,32767,32767,32767,32767,32767,-226,-271,32767,32767,-237,-254,-230,-259,-585,-618,-555,198,0,0,0]} 1. e4 {[%emt 0:00:00]} c5 {[%emt 0:00:08]} 2. Nf3 {[%emt 0:00:00]} Nc6 {[%emt 0:00:04]} 3. d4 {[%emt 0:00:00]} cxd4 {[%emt 0:00:04]} 4. Nxd4 {[%emt 0:00:05]} g6 {[%emt 0:00:07]} 5. Nc3 {[%emt 0:00:19]} Bg7 {[%emt 0:00:05]} 6. Nb3 {[%emt 0:00:13]} Nf6 {[%emt 0:01:34] LiveBook: 686 Games} 7. Be2 {[%emt 0:00:10]} O-O {[%emt 0:00:44]} 8. O-O {[%emt 0:00:08]} a5 {[%emt 0:05:03]} 9. a4 {[%emt 0:00:42]} d6 {[%emt 0:01:03]} 10. Re1 {[%emt 0:00:17]} Be6 {[%emt 0:00:29]} 11. Bf1 {[%emt 0:03:55]} Bxb3 {[%emt 0:04:13]} 12. cxb3 {[%emt 0:00:17]} Nd7 {[%emt 0:00:29] B70: Sicilian Dragon: 6 g3 and 6 Be2 (without a later Be3)} (12... e6 13. Bg5 h6 14. Bh4 g5 15. Bg3 d5 16. exd5 Nxd5 17. Rc1 Nd4 18. f3 Nf5 19. Bf2 Nb4 20. g4 {½-½ (34) Bryant,J (2416)-Ramirez,A (2554) Las Vegas 2012}) 13. Bg5 {[%emt 0:07:14]} Nc5 {[%emt 0:02:23]} 14. Rb1 {[%emt 0:12:44]} h6 $146 {[%emt 0:02:56]} ({Predecessor:} 14... Ne6 15. Be3 Rc8 16. Nd5 Nc5 17. f3 e6 18. Nc3 Qe7 19. Bc4 Rfd8 20. Bf2 {1-0 (37) Forgo,E (2295)-Toth,G (2155) Hungary 1998}) 15. Be3 {[%emt 0:02:06]} Kh7 {[%emt 0:05:32]} 16. f3 {[%emt 0:07:12]} Rc8 {[%emt 0:15:58]} 17. Nd5 {[%emt 0:06:17]} e6 {[%emt 0:03:20]} 18. Nc3 {[%emt 0:01:27]} Qe7 {[%emt 0:00:15]} 19. Nb5 {[%emt 0:13:38]} Rfd8 {[%emt 0:01:27]} 20. Bf4 {[%emt 0:04:10]} Be5 {[%emt 0:02:05]} 21. Bd2 {[%emt 0:06:45]} d5 {[%emt 0:08:31]} 22. exd5 Rxd5 {[%emt 0:01:32]} 23. Bc4 {[%emt 0:02:56]} Qh4 {[%emt 0:01:30]} 24. Bxd5 {[%emt 0:10:55]} (24. Rxe5 $142 Rxe5 25. g3) 24... Qxh2+ {[%emt 0:02:02]} 25. Kf1 {[%emt 0:00:12]} Qh1+ {[%emt 0:10:00]} 26. Kf2 {[%emt 0:01:27]} Nd3+ {[%emt 0:01:58]} 27. Ke3 {[%emt 0:00:59]} Nxe1 {[%emt 0:01:40]} 28. Bxc6 $2 {[%emt 0:08:43]} (28. Qxe1 {was the crucial defense.} Qxe1+ 29. Bxe1 exd5 30. f4) 28... Qg1+ {[%emt 0:04:48]} ({Schwächer ist} 28... Rxc6 29. Qxe1 Qxg2 30. Bc3 $14) 29. Ke4 {[%emt 0:00:13]} f5+ $4 {[%emt 0:05:59]} ({Less strong is} 29... bxc6 30. Qxe1 Qxg2 31. Nd4 $17 (31. Kxe5 Qxf3 32. Nd6 Qd5+ 33. Kf4 Qxd6+ 34. Kf3 Rd8 $17)) (29... Bg3 $19 {[%csl Ge6,Gg6][%cal Rf7f5]} 30. Bxe1 f5+ 31. Kd3 Rd8+ 32. Kc4 Rxd1 33. Rxd1 Bxe1 34. Rd7+ Kg8 35. Bxb7 Qxg2) 30. Kxe5 $11 {[%emt 0:00:12]} Nd3+ {[%emt 0:00:51]} 31. Kf6 {[%emt 0:01:56]} Qc5 {[%emt 0:01:12]} 32. Bxh6 {[%emt 0:00:16]} Qe5+ {[%emt 0:08:56]} 33. Kf7 {[%emt 0:00:48]} Rc7+ {[%emt 0:02:37]} 34. Nxc7 {[%emt 0:01:20]} Qxc7+ {[%emt 0:00:08]} 35. Kf6 {[%emt 0:01:07]} Qe5+ {[%emt 0:05:06]} 36. Ke7 {[%emt 0:00:11]} Qc7+ {[%emt 0:02:23]} 37. Bd7 {[%emt 0:00:11]} Qc5+ {[%emt 0:00:07]} 38. Ke8 {[%emt 0:00:45]} Ne5 {[%emt 0:01:33]} 39. Bf8 {[%emt 0:00:37]} 0-1

[Event "22nd Alekhine FIDE 2018"]
[Site "Voronezh"]
[Date "2018.06.16"]
[Round "5"]
[White "Zisin, Oleg"]
[Black "Kolomensky, Vladimir"]
[Result "1/2-1/2"]
[WhiteElo "2012"]
[BlackElo "2120"]
[Annotator "NA"]
[PlyCount "141"]
[EventDate "2018.??.??"]
[EventType "swiss"]
[EventCountry "RUS"]
[SourceTitle "playchess.com"]
[Source "ChessBase"]
[SourceQuality "1"]
[TimeControl "5400+30"]

1. e4 {[%emt 0:00:00]} c5 {[%emt 0:00:09]} 2. Nf3 {[%emt 0:00:00]} e6 {[%emt 0:00:09]} 3. b3 {[%emt 0:00:00]} a6 {[%emt 0:00:30]} 4. Bb2 {[%emt 0:00:23]} Nc6 {[%emt 0:00:13]} 5. d4 {[%emt 0:07:18]} cxd4 {[%emt 0:00:16]} 6. Nxd4 {[%emt 0:00:04]} Qf6 {[%emt 0:00:44] B40: Sicilian: 2...e6, Unusual lines} 7. c3 {[%emt 0:01:18]} Bc5 {[%emt 0:00:28] LiveBook: 23 Games} 8. g3 {[%emt 0:12:50]} h5 {[%emt 0:23:40]} 9. h4 {[%emt 0:19:50]} e5 {[%emt 0:01:22]} 10. Nf3 {[%emt 0:00:46]} Nh6 $146 {[%emt 0:02:58]} ({Predecessor:} 10... d6 11. Nbd2 Bg4 12. Bg2 Nge7 13. O-O O-O 14. Qe1 {½-½ (69) Wang,C (2436)-Moradiabadi,E (2536) Mashhad 2011}) 11. Bg2 {[%emt 0:01:52]} Ng4 {[%emt 0:00:42]} 12. O-O {[%emt 0:00:46]} O-O {[%emt 0:05:02]} 13. c4 {[%emt 0:09:01]} (13. Ba3 $5 {[%cal Ra3c5]} d6 14. Bxc5 dxc5 15. Na3 $11) 13... d6 {[%emt 0:01:27]} 14. Nc3 {[%emt 0:00:54]} Qg6 {[%emt 0:08:38]} 15. Qe2 {[%emt 0:25:05]} f5 {[%emt 0:01:34]} 16. Ng5 {[%emt 0:03:25]} f4 {[%emt 0:02:25]} 17. Kh1 {[%emt 0:01:03]} fxg3 {[%emt 0:39:07]} 18. fxg3 {[%emt 0:00:17]} Rf2 {[%emt 0:00:48]} 19. Rxf2 {[%emt 0:00:41]} Nxf2+ {[%emt 0:00:05]} 20. Kh2 {[%emt 0:00:09]} Bg4 {[%emt 0:00:09]} 21. Qd2 $15 {[%emt 0:00:54]} Rf8 {[%emt 0:00:56]} 22. Rf1 {[%emt 0:06:07]} Bc8 {[%emt 0:01:05]} 23. Nd5 {[%emt 0:03:00]} Ng4+ {[%emt 0:01:15]} 24. Kh1 {[%emt 0:00:09]} Rf2 {[%emt 0:01:24]} 25. Rxf2 {[%emt 0:00:12]} Bxf2 {[%emt 0:00:28]} 26. Qd3 {[%emt 0:04:35]} Be3 {[%emt 0:00:28]} 27. Qe2 {[%emt 0:00:34]} Bxg5 {[%emt 0:00:26]} 28. hxg5 {[%emt 0:00:53]} Qxg5 {[%emt 0:00:02]} 29. Qe1 {[%emt 0:01:03]} Nf6 {[%emt 0:02:59]} 30. Ba3 {[%emt 0:00:50]} Ne8 {[%emt 0:01:04]} 31. Qf2 {[%emt 0:00:33]} Nd4 {[%emt 0:01:04]} 32. Bb2 {[%emt 0:00:32]} Be6 {[%emt 0:02:03]} 33. Bxd4 {[%emt 0:00:31]} exd4 {[%emt 0:00:02]} 34. Qxd4 {[%emt 0:00:51]} Qxg3 {[%emt 0:00:02]} 35. Ne7+ {[%emt 0:00:26]} Kf7 {[%emt 0:00:24]} 36. Nf5 {[%emt 0:00:27]} Qf4 {[%emt 0:00:40]} 37. Qb6 {[%emt 0:00:25]} Bc8 {[%emt 0:01:20]} 38. Qd8 {[%emt 0:00:37]} Bxf5 {[%emt 0:01:31]} 39. exf5 {[%emt 0:00:01]} Nf6 {[%emt 0:00:29]} 40. Qc8 {[%emt 0:01:06]} b6 {[%emt 0:00:52]} 41. Bd5+ {[%emt 0:00:29]} Nxd5 {[%emt 0:00:10]} 42. Qe6+ {[%emt 0:00:11]} Kf8 {[%emt 0:00:02]} 43. Qc8+ {[%emt 0:00:46]} Ke7 {[%emt 0:00:03]} 44. Qb7+ {[%emt 0:00:33]} Kf6 {[%emt 0:00:22]} 45. Qxd5 {[%emt 0:00:16]} Qe5 {[%emt 0:00:40]} 46. Qc6 {[%emt 0:00:13]} Qe1+ {[%emt 0:01:19]} 47. Kg2 {[%emt 0:00:21]} Qe2+ {[%emt 0:00:12]} 48. Kg1 {[%emt 0:00:16]} Qe3+ {[%emt 0:00:59]} 49. Kh1 {[%emt 0:00:20]} Kxf5 {[%emt 0:00:22]} 50. Qxd6 {[%emt 0:00:21]} Qe4+ {[%emt 0:00:45]} 51. Kg1 {[%emt 0:00:07]} Qb1+ {[%emt 0:00:07]} 52. Kg2 {[%emt 0:00:30]} Qxa2+ {[%emt 0:00:04]} 53. Kf1 {[%emt 0:00:44]} Qb1+ {[%emt 0:00:23]} 54. Kg2 {[%emt 0:00:20]} Qc2+ {[%emt 0:00:13]} 55. Kf1 {[%emt 0:00:29]} Qc1+ {[%emt 0:00:05]} 56. Kg2 {[%emt 0:00:07]} Qg5+ {[%emt 0:01:08]} 57. Kh1 {[%emt 0:00:11]} Qh4+ {[%emt 0:01:02]} 58. Kg2 {[%emt 0:00:18]} Qe4+ {[%emt 0:00:13]} 59. Kg1 {[%emt 0:00:25]} Qe5 {[%emt 0:00:42]} 60. Qxb6 {[%emt 0:00:38]} a5 {[%emt 0:00:25]} 61. c5 {[%emt 0:00:49]} Qe3+ {[%emt 0:00:27]} 62. Kf1 {[%emt 0:00:53]} Kf4 {[%emt 0:00:59]} 63. Qc7+ {[%emt 0:02:01]} Kg4 {[%emt 0:01:15]} 64. Qxg7+ {[%emt 0:00:31]} Kh4 {[%emt 0:00:18]} 65. Qf6+ {[%emt 0:00:28]} Kg3 {[%emt 0:00:51]} 66. Qg6+ {[%emt 0:00:41]} Kh4 {[%emt 0:00:01]} 67. Qf6+ {[%emt 0:00:22]} Kg3 {[%emt 0:00:03]} 68. Qg6+ {[%emt 0:00:33]} Kh4 {[%emt 0:00:01]} 69. Qd6 {[%emt 0:00:37]} Qc1+ {[%emt 0:01:13]} 70. Ke2 {[%emt 0:00:24]} Qc2+ {[%emt 0:00:01]} 71. Ke1 {[%emt 0:00:27]} 1/2-1/2

[Event "22nd Alekhine FIDE 2018"]
[Site "Voronezh"]
[Date "2018.06.16"]
[Round "5"]
[White "Napalkov, Vladimir"]
[Black "Khajrutdinov, Ildar"]
[Result "1/2-1/2"]
[ECO "E59"]
[WhiteElo "2005"]
[BlackElo "2106"]
[Annotator "NA"]
[PlyCount "134"]
[EventDate "2018.??.??"]
[EventType "swiss"]
[EventCountry "RUS"]
[SourceTitle "playchess.com"]
[Source "ChessBase"]
[SourceQuality "1"]
[TimeControl "5400+30"]

1. d4 {[%emt 0:00:00]} Nf6 {[%emt 0:00:18]} 2. c4 {[%emt 0:00:00]} e6 {[%emt 0:00:10]} 3. Nc3 {[%emt 0:00:00]} Bb4 {[%emt 0:00:30]} 4. e3 {[%emt 0:00:00]} O-O {[%emt 0:00:45]} 5. Bd3 {[%emt 0:00:10]} d5 {[%emt 0:01:16]} 6. Nf3 {[%emt 0:02:09]} c5 {[%emt 0:00:48]} 7. O-O {[%emt 0:00:19]} Nc6 {[%emt 0:01:05]} 8. a3 {[%emt 0:00:12]} Bxc3 {[%emt 0:00:12]} 9. bxc3 {[%emt 0:00:06]} dxc4 {[%emt 0:00:11]} 10. Bxc4 {[%emt 0:00:13]} Qc7 {[%emt 0:00:33]} 11. Bd3 {[%emt 0:20:00]} e5 {[%emt 0:03:40]} 12. dxe5 {[%emt 0:00:36]} Nxe5 {[%emt 0:01:13]} 13. Nxe5 {[%emt 0:00:21]} Qxe5 {[%emt 0:00:18]} 14. Qc2 {[%emt 0:00:16]} Re8 {[%emt 0:35:10]} 15. f3 {[%emt 0:07:23]} Bd7 {[%emt 0:05:37]} 16. e4 {[%emt 0:00:34] LiveBook: 6 Games} c4 {[%emt 0:00:39] E59: Nimzo-Indian: Rubinstein: Main Line: 7...Nc6 8 a3 Bxc3 9 bxc3 dxc4} (16... Rad8 17. a4 Bc6 18. Bb5 Rd6 19. Be3 Red8 20. Bc4 b6 21. Rfe1 Nh5 22. Rad1 Nf4 23. a5 b5 24. Bf1 {½-½ (60) Peralta,F (2574)-Lenic,L (2659) Tromsoe 2014}) 17. Be2 {[%emt 0:00:16]} Qc5+ {[%emt 0:00:44]} 18. Kh1 {[%emt 0:00:29]} b5 {[%emt 0:02:10]} 19. Bd2 {[%emt 0:10:43]} Bc6 {[%emt 0:14:18]} 20. Qc1 {[%emt 0:02:25]} Qe7 $146 {[%emt 0:06:02]} ({Predecessor:} 20... Nd7 21. Ra2 f5 22. Be3 Qe7 23. Bg5 Qe6 24. exf5 Qxf5 {½-½ (57) Arnelind,M (2181)-Svensson,S (2238) Sweden 2010}) 21. Be3 {[%emt 0:13:21]} Nd7 {[%emt 0:02:09]} 22. Bd1 {[%emt 0:05:43]} Nc5 {[%emt 0:04:25]} 23. Bc2 $11 {[%emt 0:01:12]} a5 {[%emt 0:05:35]} 24. Qb1 {[%emt 0:21:35]} Rad8 {[%emt 0:03:39]} 25. Bd4 {[%emt 0:03:00]} Ne6 {[%emt 0:01:14]} 26. Bb6 {[%emt 0:01:23]} Rd7 {[%emt 0:05:20]} 27. e5 {[%emt 0:02:39]} Nf4 {[%emt 0:02:00]} 28. Bxh7+ {[%emt 0:02:51]} Kh8 {[%emt 0:00:34]} 29. Be4 {[%emt 0:00:14]} Bxe4 {[%emt 0:02:02]} 30. Qxe4 {[%emt 0:00:06]} Qxe5 {[%emt 0:00:42]} 31. Rae1 {[%emt 0:01:08]} Qxe4 {[%emt 0:00:52]} 32. Rxe4 {[%emt 0:00:13]} Rxe4 {[%emt 0:00:18]} 33. fxe4 {[%emt 0:00:04]} b4 {[%emt 0:01:34]} 34. axb4 {[%emt 0:02:23]} axb4 {[%emt 0:00:23]} 35. cxb4 {[%emt 0:00:05]} c3 {[%emt 0:00:49]} 36. Kg1 {[%emt 0:03:45]} Nd3 {[%emt 0:00:39]} 37. b5 {[%emt 0:00:41]} Rb7 {[%emt 0:00:25]} 38. Be3 {[%emt 0:00:30]} Rxb5 {[%emt 0:00:10]} 39. Rd1 {[%emt 0:00:12]} Nc5 {[%emt 0:00:49]} 40. Bxc5 {[%emt 0:00:31]} Rxc5 {[%emt 0:00:17]} 41. Rc1 {[%emt 0:00:46]} c2 {[%emt 0:00:34]} 42. Kf2 {[%emt 0:00:08]} Kh7 {[%emt 0:00:45]} 43. Ke3 {[%emt 0:00:08]} Kg6 {[%emt 0:00:30]} 44. Kd3 {[%emt 0:00:08]} Rh5 {[%emt 0:00:31]} 45. h3 {[%emt 0:00:13]} Rg5 {[%emt 0:00:28]} 46. Rxc2 {[%emt 0:01:29]} Rg3+ {[%emt 0:00:10]} 47. Kd4 {[%emt 0:00:08]} f6 {[%emt 0:00:23]} 48. Kd5 {[%emt 0:00:58]} Rd3+ {[%emt 0:00:16]} 49. Kc4 {[%emt 0:00:35]} Rd1 {[%emt 0:00:42]} 50. Rf2 {[%emt 0:01:15]} Rd8 {[%emt 0:00:50]} 51. Kc3 {[%emt 0:00:10]} Rd1 {[%emt 0:00:21]} 52. Rd2 {[%emt 0:00:29]} Re1 {[%emt 0:00:21]} 53. Kd3 {[%emt 0:00:22]} Kg5 {[%emt 0:00:12]} 54. Rf2 {[%emt 0:00:17]} Kg6 {[%emt 0:00:50]} 55. Re2 {[%emt 0:00:18]} Ra1 {[%emt 0:00:26]} 56. Ke3 {[%emt 0:00:17]} Kf7 {[%emt 0:00:16]} 57. h4 {[%emt 0:00:43]} Ke6 {[%emt 0:01:09]} 58. Rb2 {[%emt 0:00:22]} Re1+ {[%emt 0:00:16]} 59. Kf3 {[%emt 0:00:31]} Rf1+ {[%emt 0:00:23]} 60. Kg4 {[%emt 0:00:54]} g6 {[%emt 0:00:35]} 61. Rb5 {[%emt 0:00:33]} Rf2 {[%emt 0:00:28]} 62. g3 {[%emt 0:00:24]} Rf1 {[%emt 0:00:10]} 63. h5 {[%emt 0:00:54]} gxh5+ {[%emt 0:00:22]} 64. Rxh5 {[%emt 0:00:15]} Rf2 {[%emt 0:00:20]} 65. Rf5 {[%emt 0:01:02]} Rxf5 {[%emt 0:01:31]} 66. exf5+ {[%emt 0:00:12]} Ke5 {[%emt 0:00:01]} 67. Kf3 {[%emt 0:00:56]} Kxf5 {[%emt 0:00:03]} 1/2-1/2